fUSD/lending_fUSD_20250112
["ID","MTS","AMOUNT","RATE_DAILY","PERIOD"]
[348676036,1736709047738,-715.31,0.00010635,2]
[348676037,1736709047749,-500.0,0.00010635,2]
[348676038,1736709047759,-504.85,0.00010635,2]
[348676039,1736709047770,-2226.69,0.00010635,2]
[348676040,1736709047780,-500.0,0.00010635,2]
[348676041,1736709047791,-1354.01,0.00010635,2]
[348676042,1736709047801,-871.84,0.00010635,2]
[348676043,1736709047811,-689.31,0.00010635,2]
[348676044,1736709047822,-500.0,0.00010635,2]
[348676045,1736709047832,-514.12,0.00010635,2]
[348676046,1736709047843,-3908.88,0.00010635,2]
[348676047,1736709047857,-500.0,0.00010635,2]
[348676048,1736709047868,-822.26,0.00010635,2]
[348676049,1736709047880,-500.0,0.00010635,2]
[348676050,1736709047891,-796.14,0.00010635,2]
[348676051,1736709047901,-500.0,0.00010635,2]
[348676052,1736709047913,-500.0,0.00010635,2]
[348676053,1736709047925,-500.0,0.00010635,2]
[348676054,1736709047937,-500.0,0.00010635,2]
[348676055,1736709047948,-695.22,0.00010635,2]
[348676056,1736709047962,-580.12,0.00010635,2]
[348676057,1736709047975,-687.84,0.00010635,2]
[348676058,1736709047987,-1422.92,0.00010635,2]
[348676059,1736709047999,-500.0,0.00010635,2]
[348676060,1736709048011,-861.22,0.00010635,2]
[348676061,1736709048022,-1074.42,0.00010635,2]
[348676062,1736709048032,-685.88,0.00010635,2]
[348676063,1736709048044,-500.0,0.00010635,2]
[348676064,1736709048055,-500.0,0.00010635,2]
[348676065,1736709048066,-1109.63,0.00010635,2]
[348676066,1736709048077,-710.3,0.00010635,2]
[348676067,1736709048088,-500.0,0.00010635,2]
[348676068,1736709048099,-547.43,0.00010635,2]
[348676069,1736709048110,-500.0,0.00010635,2]
[348676070,1736709048121,-500.0,0.00010635,2]
[348676071,1736709048132,-634.85,0.00010635,2]
[348676072,1736709048142,-585.14,0.00010635,2]
[348676073,1736709048153,-500.0,0.00010635,2]
[348676074,1736709048164,-852.62,0.00010636,2]
[348676075,1736709048175,-1533.28,0.00010636,2]
[348676076,1736709048186,-906.98,0.00010636,2]
[348676077,1736709048197,-662.47,0.00010636,2]
[348676078,1736709048208,-747.947643,0.00010636,2]
[348676079,1736709048220,-3096.8,0.00010636,2]
[348676080,1736709048230,-793.089038,0.00010636,2]
[348676081,1736709048241,-672.5,0.00010636,2]
[348676082,1736709048251,-677.8,0.00010636,2]
[348676083,1736709048262,-704.37,0.00010636,2]
[348676084,1736709048273,-3308.77,0.00010636,2]
[348676085,1736709048283,-500.0,0.00010636,2]
[348676086,1736709048294,-574.64,0.00010636,2]
[348676087,1736709048305,-500.0,0.00010636,2]
[348676088,1736709048316,-710.37,0.00010636,2]
[348676089,1736709048327,-500.0,0.00010636,2]
[348676090,1736709048339,-500.0,0.00010636,2]
[348676091,1736709048350,-941.34,0.00010636,2]
[348676092,1736709048361,-620.73,0.00010636,2]
[348676093,1736709048372,-500.0,0.00010636,2]
[348676094,1736709048383,-500.0,0.00010636,2]
[348676095,1736709048394,-500.0,0.00010636,2]
[348676096,1736709048405,-500.0,0.00010636,2]
[348676097,1736709048416,-501.66,0.00010636,2]
[348676098,1736709048427,-500.0,0.00010636,2]
[348676099,1736709048439,-500.0,0.00010636,2]
[348676100,1736709048449,-500.0,0.00010636,2]
[348676101,1736709048460,-500.0,0.00010636,2]
[348676102,1736709048471,-518.52,0.00010636,2]
[348676103,1736709048482,-562.63,0.00010636,2]
[348676104,1736709048493,-633.36,0.00010636,2]
[348676105,1736709048503,-856.86,0.00010636,2]
[348676106,1736709048514,-500.0,0.00010636,2]
[348676107,1736709048525,-500.0,0.00010636,2]
[348676108,1736709048538,-500.0,0.00010636,2]
[348676109,1736709048549,-1194.5,0.00010636,2]
[348676110,1736709048559,-500.0,0.00010636,2]
[348676111,1736709048570,-862.72,0.00010636,2]
[348676112,1736709048581,-759.87,0.00010636,2]
[348676113,1736709048591,-1565.08,0.00010636,2]
[348676114,1736709048601,-851.14,0.00010636,2]
[348676115,1736709048612,-895.43,0.00010636,2]
[348676116,1736709048623,-1055.63,0.00010636,2]
[348676117,1736709048634,-500.0,0.00010636,2]
[348676118,1736709048644,-500.0,0.00010636,2]
[348676119,1736709048655,-2218.53,0.00010636,2]
[348676120,1736709048665,-500.0,0.00010636,2]
[348676121,1736709048675,-500.0,0.00010636,2]
[348676122,1736709048686,-500.0,0.00010636,2]
[348676123,1736709048696,-1246.57,0.00010636,2]
[348676124,1736709048707,-536.65,0.00010636,2]
[348676125,1736709048717,-500.0,0.00010636,2]
[348676126,1736709048727,-587.96,0.00010636,2]
[348676127,1736709048738,-3022.45,0.00010636,2]
[348676128,1736709048749,-3560.6,0.00010636,2]
[348676129,1736709048760,-508.5,0.00010636,2]
[348676130,1736709048771,-609.66,0.00010636,2]
[348676131,1736709048781,-666.21,0.00010636,2]
[348676132,1736709048792,-549.39,0.00010636,2]
[348676133,1736709048802,-500.0,0.00010636,2]
[348676134,1736709048812,-500.0,0.00010636,2]
[348676135,1736709048823,-1451.52,0.00010636,2]
[348676136,1736709048833,-500.0,0.00010636,2]
[348676137,1736709048843,-500.0,0.00010636,2]
[348676138,1736709048854,-775.84,0.00010636,2]
[348676139,1736709048864,-533.68,0.00010636,2]
[348676140,1736709048875,-2572.06,0.00010636,2]
[348676141,1736709048886,-736.09,0.00010636,2]
[348676142,1736709048896,-817.24,0.00010636,2]
[348676143,1736709048907,-550.14,0.00010636,2]
[348676144,1736709048918,-1003.25,0.00010636,2]
[348676145,1736709048928,-500.0,0.00010637,2]
[348676146,1736709048938,-500.0,0.00010637,2]
[348676147,1736709048949,-500.0,0.00010637,2]
[348676148,1736709048959,-500.0,0.00010637,2]
[348676149,1736709048970,-385.17479669,0.00010637,2]
[348676150,1736709048981,-500.0,0.00010637,2]
[348676151,1736709048991,-283.43632501,0.00010637,2]
[348676152,1736709049002,-500.0,0.00010637,2]
[348676153,1736709049012,-500.0,0.00010637,2]
[348676154,1736709049022,-1030.25,0.00010637,2]
[348676155,1736709049033,-874.49,0.00010637,2]
[348676156,1736709049044,-772.58,0.00010637,2]
[348676157,1736709049054,-500.0,0.00010637,2]
[348676158,1736709049065,-897.15,0.00010637,2]
[348676159,1736709049075,-749.52,0.00010637,2]
[348676160,1736709049086,-921.27,0.00010637,2]
[348676161,1736709049098,-867.41,0.00010638,2]
[348676162,1736709049109,-838.4,0.00010638,2]
[348676163,1736709049121,-1928.82,0.00010638,2]
[348676164,1736709049132,-1308.66,0.00010638,2]
[348676165,1736709049143,-1246.38,0.00010638,2]
[348676166,1736709049153,-500.0,0.00010638,2]
[348676167,1736709049525,-1462.07,0.00010638,2]
[348676168,1736709049552,-820.09,0.00010638,2]
[348676169,1736709049573,-1615.37,0.00010638,2]
[348676170,1736709049586,-1253.02,0.00010638,2]
[348676171,1736709049596,-1163.34,0.00010638,2]
[348676172,1736709049605,-2339.18,0.00010638,2]
[348676173,1736709049617,-1216.68,0.00010638,2]
[348676174,1736709049628,-1496.42,0.00010638,2]
[348676175,1736709049638,-4996.32,0.00010638,2]
[348676176,1736709049647,-825.35,0.00010638,2]
[348676177,1736709049659,-3577.75,0.00010638,2]
[348676178,1736709049667,-874.6,0.00010638,2]
[348676179,1736709049679,-1000.0,0.00010638,2]
[348676180,1736709049688,-1284.97,0.00010638,2]
[348676181,1736709049698,-1163.84,0.00010638,2]
[348676182,1736709049709,-618.35,0.00010638,2]
[348676183,1736709049718,-500.0,0.00010638,2]
[348676184,1736709049728,-2440.81,0.00010638,2]
[348676185,1736709049738,-2322.81,0.00010638,2]
[348676186,1736709049747,-1200.97,0.00010638,2]
[348676187,1736709049756,-765.36,0.00010638,2]
[348676188,1736709049766,-1746.58,0.00010639,2]
[348676189,1736709049775,-1008.0,0.00010656,2]
[348676190,1736709049787,-150.0,0.00010664,2]
[348676191,1736709049797,-393.5828982,0.00010666,2]
[348676192,1736709049807,-150.0,0.0001067,2]
[348676193,1736709049817,-500.0,0.00010684,2]
[348676194,1736709049828,-150.0,0.00010691,2]
[348676195,1736709049837,-632.7169024,0.0001071,2]
[348676196,1736709049847,-150.0,0.00010755,2]
[348676197,1736709049855,-150.0,0.00010759,2]
[348676198,1736709049864,-1173.0,0.00010768,2]
[348676199,1736709049874,-3896.0,0.00010768,2]
[348676200,1736709049883,-150.0,0.00010768,2]
[348676201,1736709049892,-1104.0,0.00010768,2]
[348676202,1736709049901,-230.59155975,0.00010773,2]
[348676203,1736709049911,-150.0,0.00010776,2]
[348676204,1736709049919,-5927.038,0.00010777,2]
[348676205,1736709049928,-195.431,0.00010777,2]
[348676206,1736709049937,-150.0,0.00010779,2]
[348676207,1736709049947,-150.0,0.00010788,2]
[348676208,1736709049956,-632.7169024,0.0001079,2]
[348676209,1736709049965,-982.77188825,0.000108,2]
[348676210,1736709049975,-1583.0,0.000108,2]
[348676211,1736709049984,-150.0,0.00010802,2]
[348676212,1736709049993,-150.0,0.00010804,2]
[348676213,1736709050002,-150.0,0.00010807,2]
[348676214,1736709050011,-393.5828982,0.00010811,2]
[348676215,1736709050021,-150.0,0.00010819,2]
[348676216,1736709050030,-150.0,0.0001082,2]
[348676217,1736709050040,-500.0,0.00010821,2]
[348676218,1736709050049,-150.0,0.00010837,2]
[348676219,1736709050058,-150.0,0.00010844,2]
[348676220,1736709050069,-643.93,0.00010849,2]
[348676221,1736709050079,-500.0,0.00010849,2]
[348676222,1736709050088,-500.0,0.00010849,2]
[348676223,1736709050098,-150.0,0.00010849,2]
[348676224,1736709050108,-1265.46,0.00010849,2]
[348676225,1736709050117,-840.79,0.00010849,2]
[348676226,1736709050128,-1961.09,0.00010849,2]
[348676227,1736709050137,-150.0,0.00010854,2]
[348676228,1736709050147,-150.0,0.00010855,2]
[348676229,1736709050156,-150.0,0.00010861,2]
[348676230,1736709050167,-150.0,0.00010866,2]
[348676231,1736709050178,-632.7169024,0.00010869,2]
[348676232,1736709050187,-150.0,0.00010871,2]
[348676233,1736709050197,-150.0,0.00010873,2]
[348676234,1736709050207,-150.0,0.00010878,2]
[348676235,1736709050217,-150.0,0.0001088,2]
[348676236,1736709050227,-150.0,0.00010881,2]
[348676237,1736709050236,-150.0,0.00010891,2]
[348676238,1736709050246,-101963.57052756,0.000109,2]
[348676239,1736709050255,-14596.939874,0.000109,2]
[348676240,1736709050265,-728.5266628,0.000109,2]
[348676241,1736709050274,-1000.0,0.000109,2]
[348676242,1736709050283,-182.65106808,0.000109,2]
[348676243,1736709050295,-182.65106808,0.000109,2]
[348676244,1736709050305,-1000.0,0.00010901,2]
[348676245,1736709050314,-1933.35,0.00010908,2]
[348676246,1736709050323,-1972.74,0.00010908,2]
[348676247,1736709050334,-1224.98,0.00010908,2]
[348676248,1736709050344,-806.89,0.00010908,2]
[348676249,1736709050353,-2040.61,0.00010908,2]
[348676250,1736709050362,-510.73,0.00010908,2]
[348676251,1736709050372,-857.68,0.00010908,2]
[348676252,1736709050382,-500.0,0.00010908,2]
[348676253,1736709050391,-1258.44,0.00010908,2]
[348676254,1736709050400,-1105.36,0.00010908,2]
[348676255,1736709050409,-632.21,0.00010908,2]
[348676256,1736709050418,-1681.65,0.00010908,2]
[348676257,1736709050428,-500.0,0.00010908,2]
[348676258,1736709050439,-500.0,0.00010908,2]
[348676259,1736709050449,-500.0,0.00010908,2]
[348676260,1736709050459,-500.0,0.00010908,2]
[348676261,1736709050468,-919.96,0.00010908,2]
[348676262,1736709050478,-500.0,0.00010909,2]
[348676263,1736709050487,-500.0,0.00010909,2]
[348676264,1736709050496,-500.0,0.00010909,2]
[348676265,1736709050506,-500.0,0.00010909,2]
[348676266,1736709050515,-631.97,0.00010909,2]
[348676267,1736709050524,-500.0,0.00010909,2]
[348676268,1736709050537,-500.0,0.00010909,2]
[348676269,1736709050546,-500.0,0.00010909,2]
[348676270,1736709050556,-500.0,0.00010909,2]
[348676271,1736709050566,-551.2,0.00010909,2]
[348676272,1736709050576,-500.0,0.00010909,2]
[348676273,1736709050586,-500.0,0.00010909,2]
[348676274,1736709050595,-535.39,0.00010909,2]
[348676275,1736709050605,-500.0,0.00010909,2]
[348676276,1736709050614,-500.0,0.00010909,2]
[348676277,1736709050624,-520.67,0.00010909,2]
[348676278,1736709050633,-500.0,0.00010909,2]
[348676279,1736709050642,-500.0,0.00010909,2]
[348676280,1736709050652,-638.5,0.00010909,2]
[348676281,1736709050662,-500.0,0.00010909,2]
[348676282,1736709050671,-500.0,0.00010909,2]
[348676283,1736709050680,-628.83,0.00010909,2]
[348676284,1736709050690,-806.86,0.00010909,2]
[348676285,1736709050699,-500.0,0.00010909,2]
[348676286,1736709050709,-500.0,0.00010909,2]
[348676287,1736709050718,-500.0,0.00010909,2]
[348676288,1736709050728,-592.59,0.00010909,2]
[348676289,1736709050738,-500.0,0.00010909,2]
[348676290,1736709050747,-500.0,0.00010909,2]
[348676291,1736709050758,-500.0,0.00010909,2]
[348676292,1736709050768,-500.0,0.00010909,2]
[348676293,1736709050777,-500.0,0.00010909,2]
[348676294,1736709050789,-500.0,0.00010909,2]
[348676295,1736709050798,-681.67,0.00010909,2]
[348676296,1736709050809,-500.0,0.00010909,2]
[348676297,1736709050820,-693.36,0.00010909,2]
[348676298,1736709050830,-753.63,0.00010909,2]
[348676299,1736709050840,-534.92,0.00010909,2]
[348676300,1736709050850,-622.5,0.00010909,2]
[348676301,1736709050859,-624.94,0.00010909,2]
[348676302,1736709050868,-500.0,0.00010909,2]
[348676303,1736709050878,-500.0,0.00010909,2]
[348676304,1736709050889,-812.9,0.00010909,2]
[348676305,1736709050899,-609.2,0.00010909,2]
[348676306,1736709050909,-500.0,0.00010909,2]
[348676307,1736709050918,-575.09,0.00010909,2]
[348676308,1736709050927,-600.08,0.00010909,2]
[348676309,1736709050938,-535.31,0.00010909,2]
[348676310,1736709050948,-500.0,0.00010909,2]
[348676311,1736709050958,-520.51,0.00010909,2]
[348676312,1736709050967,-500.0,0.00010909,2]
[348676313,1736709050976,-500.0,0.00010909,2]
[348676314,1736709050985,-543.47,0.00010909,2]
[348676315,1736709050996,-500.0,0.00010909,2]
[348676316,1736709051006,-5027.86,0.00010909,2]
[348676317,1736709051015,-522.19,0.00010909,2]
[348676318,1736709051026,-500.0,0.00010909,2]
[348676319,1736709051036,-500.0,0.00010909,2]
[348676320,1736709051047,-609.64,0.00010909,2]
[348676321,1736709051059,-760.82,0.00010909,2]
[348676322,1736709051070,-628.65,0.00010909,2]
[348676323,1736709051079,-885.5,0.00010909,2]
[348676324,1736709051089,-715.31,0.00010909,2]
[348676325,1736709051099,-500.0,0.00010909,2]
[348676326,1736709051110,-504.85,0.00010909,2]
[348676327,1736709051119,-2226.69,0.00010909,2]
[348676328,1736709051130,-500.0,0.00010909,2]
[348676329,1736709051140,-1354.01,0.00010909,2]
[348676330,1736709051151,-871.84,0.00010909,2]
[348676331,1736709051161,-689.31,0.00010909,2]
[348676332,1736709051174,-500.0,0.00010909,2]
[348676333,1736709051184,-514.12,0.00010909,2]
[348676334,1736709051194,-3908.88,0.00010909,2]
[348676335,1736709051204,-500.0,0.00010909,2]
[348676336,1736709051214,-822.26,0.00010909,2]
[348676337,1736709051225,-500.0,0.00010909,2]
[348676338,1736709051235,-796.14,0.00010909,2]
[348676339,1736709051244,-500.0,0.00010909,2]
[348676340,1736709051253,-500.0,0.00010909,2]
[348676341,1736709051263,-500.0,0.00010909,2]
[348676342,1736709051272,-500.0,0.00010909,2]
[348676343,1736709051281,-695.22,0.00010909,2]
[348676344,1736709051291,-580.12,0.00010909,2]
[348676345,1736709051301,-687.84,0.00010909,2]
[348676346,1736709051311,-1422.92,0.00010909,2]
[348676347,1736709051321,-500.0,0.00010909,2]
[348676348,1736709051331,-861.22,0.00010909,2]
[348676349,1736709051340,-1074.42,0.00010909,2]
[348676350,1736709051350,-685.88,0.00010909,2]
[348676351,1736709051359,-500.0,0.00010909,2]
[348676352,1736709051369,-500.0,0.00010909,2]
[348676353,1736709051379,-1109.63,0.00010909,2]
[348676354,1736709051389,-710.3,0.00010909,2]
[348676355,1736709051398,-500.0,0.00010909,2]
[348676356,1736709051407,-547.43,0.00010909,2]
[348676357,1736709051417,-500.0,0.00010909,2]
[348676358,1736709051426,-500.0,0.00010909,2]
[348676359,1736709051435,-634.85,0.00010909,2]
[348676360,1736709051444,-585.14,0.00010909,2]
[348676361,1736709051454,-500.0,0.00010909,2]
[348676362,1736709051466,-852.62,0.0001091,2]
[348676363,1736709051477,-1533.28,0.0001091,2]
[348676364,1736709051487,-906.98,0.0001091,2]
[348676365,1736709051497,-662.47,0.0001091,2]
[348676366,1736709051507,-747.947643,0.0001091,2]
[348676367,1736709051516,-793.089038,0.0001091,2]
[348676368,1736709051526,-3096.8,0.0001091,2]
[348676369,1736709051539,-672.5,0.0001091,2]
[348676370,1736709051548,-677.8,0.0001091,2]
[348676371,1736709051558,-704.37,0.0001091,2]
[348676372,1736709051568,-3308.77,0.0001091,2]
[348676373,1736709051579,-500.0,0.0001091,2]
[348676374,1736709051589,-574.64,0.0001091,2]
[348676375,1736709051598,-500.0,0.0001091,2]
[348676376,1736709051610,-710.37,0.0001091,2]
[348676377,1736709051621,-500.0,0.0001091,2]
[348676378,1736709051630,-500.0,0.0001091,2]
[348676379,1736709051640,-941.34,0.0001091,2]
[348676380,1736709051650,-620.73,0.0001091,2]
[348676381,1736709051660,-500.0,0.0001091,2]
[348676382,1736709051670,-500.0,0.0001091,2]
[348676383,1736709051679,-500.0,0.0001091,2]
[348676384,1736709051689,-500.0,0.0001091,2]
[348676385,1736709051700,-501.66,0.0001091,2]
[348676386,1736709051710,-500.0,0.0001091,2]
[348676387,1736709051720,-500.0,0.0001091,2]
[348676388,1736709051731,-500.0,0.0001091,2]
[348676389,1736709051742,-500.0,0.0001091,2]
[348676390,1736709051752,-518.52,0.0001091,2]
[348676391,1736709051761,-562.63,0.0001091,2]
[348676392,1736709051771,-633.36,0.0001091,2]
[348676393,1736709051781,-856.86,0.0001091,2]
[348676394,1736709051790,-500.0,0.0001091,2]
[348676395,1736709051800,-500.0,0.0001091,2]
[348676396,1736709051811,-500.0,0.0001091,2]
[348676397,1736709051821,-1194.5,0.0001091,2]
[348676398,1736709051831,-500.0,0.0001091,2]
[348676399,1736709051842,-862.72,0.0001091,2]
[348676400,1736709051851,-759.87,0.0001091,2]
[348676401,1736709051860,-1565.08,0.0001091,2]
[348676402,1736709051870,-851.14,0.0001091,2]
[348676403,1736709051879,-895.43,0.0001091,2]
[348676404,1736709051890,-1055.63,0.0001091,2]
[348676405,1736709051899,-500.0,0.0001091,2]
[348676406,1736709051908,-500.0,0.0001091,2]
[348676407,1736709051918,-500.0,0.0001091,2]
[348676408,1736709051927,-2218.53,0.0001091,2]
[348676409,1736709051937,-500.0,0.0001091,2]
[348676410,1736709051946,-500.0,0.0001091,2]
[348676411,1736709051955,-1246.57,0.0001091,2]
[348676412,1736709051964,-500.0,0.0001091,2]
[348676413,1736709051974,-587.96,0.0001091,2]
[348676414,1736709051984,-3022.45,0.0001091,2]
[348676415,1736709051995,-508.5,0.0001091,2]
[348676416,1736709052004,-3560.6,0.0001091,2]
[348676417,1736709052014,-609.66,0.0001091,2]
[348676418,1736709052024,-666.21,0.0001091,2]
[348676419,1736709052033,-549.39,0.0001091,2]
[348676420,1736709052044,-500.0,0.0001091,2]
[348676421,1736709052055,-500.0,0.0001091,2]
[348676422,1736709052064,-1451.52,0.0001091,2]
[348676423,1736709052075,-238.70323672,0.0001091,2]
[348676424,1736709052086,-500.0,0.0001091,2]
[348676425,1736709052096,-775.84,0.0001091,2]
[348676426,1736709052106,-533.68,0.0001091,2]
[348676427,1736709052116,-2572.06,0.0001091,2]
[348676428,1736709052125,-736.09,0.0001091,2]
[348676429,1736709052135,-817.24,0.0001091,2]
[348676430,1736709052145,-550.14,0.0001091,2]
[348676431,1736709052157,-1003.25,0.0001091,2]
[348676432,1736709052167,-151.0,0.00010911,2]
[348676433,1736709052177,-151.0,0.00010911,2]
[348676434,1736709052187,-500.0,0.00010911,2]
[348676435,1736709052198,-500.0,0.00010911,2]
[348676436,1736709052207,-500.0,0.00010911,2]
[348676437,1736709052216,-500.0,0.00010911,2]
[348676438,1736709052226,-500.0,0.00010911,2]
[348676439,1736709052235,-500.0,0.00010911,2]
[348676440,1736709052246,-500.0,0.00010911,2]
[348676441,1736709052256,-1030.25,0.00010911,2]
[348676442,1736709052265,-874.49,0.00010911,2]
[348676443,1736709052275,-772.58,0.00010911,2]
[348676444,1736709052284,-500.0,0.00010911,2]
[348676445,1736709052293,-897.15,0.00010911,2]
[348676446,1736709052302,-749.52,0.00010911,2]
[348676447,1736709052311,-921.27,0.00010911,2]
[348676448,1736709052321,-867.41,0.00010912,2]
[348676449,1736709052330,-838.4,0.00010912,2]
[348676450,1736709052340,-1928.82,0.00010912,2]
[348676451,1736709052350,-1308.66,0.00010912,2]
[348676452,1736709052359,-1246.38,0.00010912,2]
[348676453,1736709052370,-500.0,0.00010912,2]
[348676454,1736709052379,-1462.07,0.00010912,2]
[348676455,1736709052389,-820.09,0.00010912,2]
[348676456,1736709052399,-1615.37,0.00010912,2]
[348676457,1736709052408,-1253.02,0.00010912,2]
[348676458,1736709052419,-1163.34,0.00010912,2]
[348676459,1736709052429,-2339.18,0.00010912,2]
[348676460,1736709052440,-1216.68,0.00010912,2]
[348676461,1736709052452,-1496.42,0.00010912,2]
[348676462,1736709052462,-4996.32,0.00010912,2]
[348676463,1736709052473,-825.35,0.00010912,2]
[348676464,1736709052482,-3577.75,0.00010912,2]
[348676465,1736709052493,-874.6,0.00010912,2]
[348676466,1736709052504,-1000.0,0.00010912,2]
[348676467,1736709052513,-1284.97,0.00010912,2]
[348676468,1736709052523,-1163.84,0.00010912,2]
[348676469,1736709052534,-618.35,0.00010912,2]
[348676470,1736709052544,-500.0,0.00010912,2]
[348676471,1736709052554,-2440.81,0.00010912,2]
[348676472,1736709052732,-2322.81,0.00010912,2]
[348676473,1736709052743,-1200.97,0.00010912,2]
[348676474,1736709052752,-765.36,0.00010912,2]
[348676475,1736709052762,-150.0,0.00010913,2]
[348676476,1736709052771,-1746.58,0.00010913,2]
[348676477,1736709052781,-150.0,0.00010915,2]
[348676478,1736709052791,-150.0,0.00010917,2]
[348676479,1736709052800,-398.37,0.00010931,2]
[348676480,1736709052810,-150.0,0.00010937,2]
[348676481,1736709052819,-150.0,0.00010938,2]
[348676482,1736709052828,-150.0,0.0001094,2]
[348676483,1736709052838,-150.0,0.00010941,2]
[348676484,1736709052847,-150.0,0.00010948,2]
[348676485,1736709052857,-632.7169024,0.00010948,2]
[348676486,1736709052866,-150.0,0.00010951,2]
[348676487,1736709052875,-150.0,0.00010955,2]
[348676488,1736709052885,-500.0,0.00010958,2]
[348676489,1736709052895,-999.0,0.00010958,2]
[348676490,1736709052904,-4000.0,0.00010959,2]
[348676491,1736709052913,-194.695869,0.00010959,2]
[348676492,1736709052923,-194.695869,0.00010959,2]
[348676493,1736709052932,-194.695869,0.00010959,2]
[348676494,1736709052942,-194.695869,0.00010959,2]
[348676495,1736709052954,-194.695869,0.00010959,2]
[348676496,1736709052963,-194.695869,0.00010959,2]
[348676497,1736709052973,-150.0,0.00010959,2]
[348676498,1736709052983,-150.0,0.00010959,2]
[348676499,1736709052992,-393.5828982,0.00010979,2]
[348676500,1736709053002,-3970.75760939,0.00010982,2]
[348676501,1736709053013,-150.0,0.00010983,2]
[348676502,1736709053022,-666.0,0.00010989,2]
[348676503,1736709053031,-666.0,0.00010989,2]
[348676504,1736709053041,-666.0,0.00010989,2]
[348676505,1736709053051,-150.0,0.00010989,2]
[348676506,1736709053061,-666.0,0.00010989,2]
[348676507,1736709053071,-150.0,0.00010989,2]
[348676508,1736709053081,-666.0,0.00010989,2]
[348676509,1736709053090,-666.0,0.00010989,2]
[348676510,1736709053100,-108491.81178119,0.0001099,3]
[348676511,1736709053111,-150.0,0.00010991,2]
[348676512,1736709053121,-150.60824624,0.00010993,2]
[348676513,1736709053131,-150.0,0.00010999,2]
[348676514,1736709053140,-674.83241684,0.00010999,2]
[348676515,1736709053150,-172.55945022,0.00010999,2]
[348676516,1736709053159,-666.0,0.00010999,2]
[348676517,1736709053169,-184.00977821,0.00011,2]
[348676518,1736709053179,-1700250.67346225,0.00011,2]
[348676519,1736709053467,-3592.07747779,0.00011,2]
[348676520,1736709053479,-617.06029197,0.00011,2]
[348676521,1736709053490,-655.655,0.00011,2]
[348676522,1736709053501,-92800.0,0.00011,2]
[348676523,1736709053513,-19000.0,0.00011,2]
[348676524,1736709053525,-16895.0,0.00011,2]
[348676525,1736709053538,-434.39680883,0.00011,2]
[348676526,1736709053902,-500.0,0.00010634,2]
[348676527,1736709053912,-326.31590867,0.00010908,2]
[348676528,1736709053924,-173.68409133,0.00010908,2]
[348676529,1736709053934,-130.48214367,0.00011,2]
[348676530,1736709053959,-28316.22502413,0.00011,2]
[348676531,1736709053970,-3674.76568076,0.00011,2]
[348676532,1736709053981,-669.0756367,0.00011,2]
[348676533,1736709053993,-608.11212382,0.00011,2]
[348676534,1736709054004,-534.0425677,0.00011,2]
[348676535,1736709054015,-367.36400055,0.00011,2]